fUSD/lending_fUSD_20250519
["ID","MTS","AMOUNT","RATE_DAILY","PERIOD"]
[361612837,1747640724809,-526.11,0.00013698,2]
[361612838,1747640724832,-420.0,0.00013698,2]
[361612839,1747640724855,-420.0,0.00013698,2]
[361612840,1747640724877,-380.0,0.00013698,2]
[361612841,1747640724901,-400.0,0.00013698,2]
[361612842,1747640724925,-420.0,0.00013698,2]
[361612843,1747640724948,-490.47468195,0.00013698,2]
[361612844,1747640724971,-420.0,0.00013698,2]
[361612845,1747640724995,-420.0,0.00013698,2]
[361612846,1747640725018,-420.0,0.00013698,2]
[361612847,1747640725043,-420.0,0.00013698,2]
[361612848,1747640725065,-429.16,0.00013698,2]
[361612849,1747640725088,-420.0,0.00013698,2]
[361612850,1747640725111,-420.0,0.00013698,2]
[361612851,1747640725134,-554.69,0.00013698,2]
[361612852,1747640725156,-420.0,0.00013698,2]
[361612853,1747640725179,-420.0,0.00013698,2]
[361612854,1747640725202,-1208.219914,0.00013698,2]
[361612855,1747640725226,-380.0,0.00013698,2]
[361612856,1747640725249,-361.18692361,0.00013698,2]
[361612857,1747640725271,-420.0,0.00013698,2]
[361612858,1747640725295,-420.0,0.00013698,2]
[361612859,1747640725318,-420.0,0.00013698,2]
[361612860,1747640725340,-420.0,0.00013698,2]
[361612861,1747640725363,-420.0,0.00013698,2]
[361612862,1747640725385,-1000.0,0.00013698,2]
[361612863,1747640725407,-653.46,0.00013698,2]
[361612864,1747640725429,-494.1,0.00013698,2]
[361612865,1747640725455,-420.0,0.00013698,2]
[361612866,1747640725478,-420.0,0.00013698,2]
[361612867,1747640725502,-420.0,0.00013698,2]
[361612868,1747640725528,-1183.55,0.00013698,2]
[361612869,1747640725551,-489.14,0.00013698,2]
[361612870,1747640725574,-420.0,0.00013698,2]
[361612871,1747640725597,-420.0,0.00013698,2]
[361612872,1747640725619,-430.0,0.00013698,2]
[361612873,1747640725643,-420.0,0.00013698,2]
[361612874,1747640725666,-420.0,0.00013698,2]
[361612875,1747640725689,-562.09,0.00013698,2]
[361612876,1747640725712,-420.0,0.00013698,2]
[361612877,1747640725736,-420.0,0.00013698,2]
[361612878,1747640725759,-519.2,0.00013698,2]
[361612879,1747640725783,-276.37829561,0.00013698,2]
[361612880,1747640725806,-420.0,0.00013698,2]
[361612881,1747640725830,-489.17,0.00013698,2]
[361612882,1747640725853,-420.0,0.00013698,2]
[361612883,1747640725878,-513.65,0.00013698,2]
[361612884,1747640725903,-420.0,0.00013698,2]
[361612885,1747640725927,-2221.62,0.00013698,2]
[361612886,1747640725950,-976.01,0.00013698,2]
[361612887,1747640725972,-420.0,0.00013698,2]
[361612888,1747640725995,-737.07,0.00013698,2]
[361612889,1747640726017,-420.0,0.00013698,2]
[361612890,1747640726042,-420.0,0.00013698,2]
[361612891,1747640726065,-420.0,0.00013698,2]
[361612892,1747640726087,-380.0,0.00013698,2]
[361612893,1747640726109,-1400.98,0.00013698,2]
[361612894,1747640726132,-599.6,0.00013698,2]
[361612895,1747640726154,-615.91,0.00013698,2]
[361612896,1747640726176,-420.0,0.00013698,2]
[361612897,1747640726198,-420.0,0.00013698,2]
[361612898,1747640726220,-400.0,0.00013698,2]
[361612899,1747640726242,-1546.09,0.00013698,2]
[361612900,1747640726264,-420.0,0.00013698,2]
[361612901,1747640726289,-458.38,0.00013698,2]
[361612902,1747640726325,-400.0,0.00013698,2]
[361612903,1747640726350,-553.6,0.00013698,2]
[361612904,1747640726374,-400.0,0.00013698,2]
[361612905,1747640726398,-163.35294053,0.00013698,2]
[361612906,1747640726422,-376.50945981,0.00013698,2]
[361612907,1747640726449,-420.0,0.00013698,2]
[361612908,1747640726474,-264.63156361,0.00013698,2]
[361612909,1747640726501,-420.0,0.00013698,2]
[361612910,1747640726531,-420.0,0.00013698,2]
[361612911,1747640726558,-2410.29,0.00013698,2]
[361612912,1747640726585,-420.0,0.00013698,2]
[361612913,1747640726609,-165.67030422,0.00013698,2]
[361612914,1747640726634,-636.24,0.00013698,2]
[361612915,1747640726921,-420.0,0.00013698,2]
[361612916,1747640726946,-420.0,0.00013698,2]
[361612917,1747640726969,-380.0,0.00013698,2]
[361612918,1747640726993,-383.27774162,0.00013698,2]
[361612919,1747640727021,-420.0,0.00013698,2]
[361612920,1747640727047,-420.0,0.00013698,2]
[361612921,1747640727069,-380.0,0.00013698,2]
[361612922,1747640727093,-420.0,0.00013698,2]
[361612923,1747640727117,-767.19,0.00013698,2]
[361612924,1747640727141,-669.8,0.00013698,2]
[361612925,1747640727165,-420.0,0.00013698,2]
[361612926,1747640727189,-420.0,0.00013698,2]
[361612927,1747640727214,-497.73,0.00013698,2]
[361612928,1747640727241,-432.83,0.00013698,2]
[361612929,1747640727266,-1320.87,0.00013698,2]
[361612930,1747640727296,-602.5,0.00013698,2]
[361612931,1747640727321,-569.88,0.00013698,2]
[361612932,1747640727347,-597.56,0.00013698,2]
[361612933,1747640727372,-856.26,0.00013698,2]
[361612934,1747640727396,-420.0,0.00013698,2]
[361612935,1747640727419,-622.71,0.00013698,2]
[361612936,1747640727444,-420.0,0.00013698,2]
[361612937,1747640727473,-420.0,0.00013698,2]
[361612938,1747640727498,-420.0,0.00013698,2]
[361612939,1747640727523,-384.88696316,0.00013698,2]
[361612940,1747640727552,-420.0,0.00013698,2]
[361612941,1747640727577,-629.67,0.00013698,2]
[361612942,1747640727601,-1291.11,0.00013698,2]
[361612943,1747640727625,-420.0,0.00013698,2]
[361612944,1747640727649,-423.19,0.00013698,2]
[361612945,1747640727673,-572.06,0.00013698,2]
[361612946,1747640727696,-420.0,0.00013698,2]
[361612947,1747640727720,-443.93323192,0.00013698,2]
[361612948,1747640727743,-384.16548153,0.00013698,2]
[361612949,1747640727767,-420.0,0.00013698,2]
[361612950,1747640727794,-1223.52,0.00013698,2]
[361612951,1747640727818,-420.0,0.00013698,2]
[361612952,1747640727843,-380.0,0.00013698,2]
[361612953,1747640727866,-1114.59,0.00013698,2]
[361612954,1747640727891,-1328.76,0.00013698,2]
[361612955,1747640727914,-420.0,0.00013698,2]
[361612956,1747640727936,-385.80521871,0.00013698,2]
[361612957,1747640727960,-420.0,0.00013698,2]
[361612958,1747640727983,-761.3,0.00013698,2]
[361612959,1747640728006,-370.0,0.00013698,2]
[361612960,1747640728033,-1424.44,0.00013698,2]
[361612961,1747640728059,-1002.11,0.00013698,2]
[361612962,1747640728086,-420.0,0.00013698,2]
[361612963,1747640728124,-247.62401274,0.00013698,2]
[361612964,1747640728159,-420.0,0.00013698,2]
[361612965,1747640728184,-420.0,0.00013698,2]
[361612966,1747640728208,-420.0,0.00013698,2]
[361612967,1747640728233,-456.64346781,0.00013698,2]
[361612968,1747640728257,-420.0,0.00013698,2]
[361612969,1747640728285,-1927.48,0.00013698,2]
[361612970,1747640728309,-420.0,0.00013698,2]
[361612971,1747640728333,-420.0,0.00013698,2]
[361612972,1747640728357,-797.14,0.00013698,2]
[361612973,1747640728381,-420.0,0.00013698,2]
[361612974,1747640728406,-420.0,0.00013698,2]
[361612975,1747640728429,-380.85415035,0.00013698,2]
[361612976,1747640728459,-420.0,0.00013698,2]
[361612977,1747640728483,-420.0,0.00013698,2]
[361612978,1747640728508,-345.8027929,0.00013698,2]
[361612979,1747640728535,-420.0,0.00013698,2]
[361612980,1747640728560,-420.0,0.00013698,2]
[361612981,1747640728584,-420.0,0.00013698,2]
[361612982,1747640728609,-837.35,0.00013698,2]
[361612983,1747640728634,-1260.44,0.00013698,2]
[361612984,1747640728658,-420.0,0.00013698,2]
[361612985,1747640728682,-875.78,0.00013698,2]
[361612986,1747640728705,-420.0,0.00013698,2]
[361612987,1747640728730,-420.0,0.00013698,2]
[361612988,1747640728754,-420.0,0.00013698,2]
[361612989,1747640728780,-420.0,0.00013698,2]
[361612990,1747640728804,-444.70022594,0.00013698,2]
[361612991,1747640728829,-806.71,0.00013698,2]
[361612992,1747640728854,-420.0,0.00013698,2]
[361612993,1747640728878,-420.0,0.00013698,2]
[361612994,1747640728903,-839.57,0.00013698,2]
[361612995,1747640728928,-420.0,0.00013698,2]
[361612996,1747640728951,-804.43,0.00013698,2]
[361612997,1747640728974,-1409.56,0.00013698,2]
[361612998,1747640728997,-420.0,0.00013698,2]
[361612999,1747640729020,-380.0,0.00013698,2]
[361613000,1747640729046,-584.41,0.00013698,2]
[361613001,1747640729071,-583.46,0.00013698,2]
[361613002,1747640729096,-420.0,0.00013698,2]
[361613003,1747640729122,-953.4,0.00013698,2]
[361613004,1747640729148,-420.0,0.00013698,2]
[361613005,1747640729173,-1099.05,0.00013698,2]
[361613006,1747640729198,-380.0,0.00013698,2]
[361613007,1747640729222,-501.0,0.00013698,2]
[361613008,1747640729247,-593.19,0.00013698,2]
[361613009,1747640729271,-420.0,0.00013698,2]
[361613010,1747640729298,-529.62,0.00013698,2]
[361613011,1747640729324,-380.0,0.00013698,2]
[361613012,1747640729349,-722.69,0.00013698,2]
[361613013,1747640729374,-330.0,0.00013698,2]
[361613014,1747640729399,-420.0,0.00013698,2]
[361613015,1747640729423,-713.03,0.00013698,2]
[361613016,1747640729450,-420.0,0.00013698,2]
[361613017,1747640729474,-420.0,0.00013698,2]
[361613018,1747640729500,-400.0,0.00013698,2]
[361613019,1747640729524,-402.10532004,0.00013698,2]
[361613020,1747640729548,-420.0,0.00013698,2]
[361613021,1747640729572,-400.0,0.00013698,2]
[361613022,1747640729594,-420.0,0.00013698,2]
[361613023,1747640729618,-420.0,0.00013698,2]
[361613024,1747640729640,-420.0,0.00013698,2]
[361613025,1747640729664,-400.0,0.00013698,2]
[361613026,1747640729687,-420.0,0.00013698,2]
[361613027,1747640729711,-501.54,0.00013698,2]
[361613028,1747640729735,-420.0,0.00013698,2]
[361613029,1747640729758,-420.0,0.00013698,2]
[361613030,1747640729784,-778.14,0.00013698,2]
[361613031,1747640729807,-380.0,0.00013698,2]
[361613032,1747640729831,-293.04029477,0.00013698,2]
[361613033,1747640730062,-420.0,0.00013698,2]
[361613034,1747640730088,-403.02319837,0.00013698,2]
[361613035,1747640730112,-531.957303,0.00013698,2]
[361613036,1747640730136,-420.0,0.00013698,2]
[361613037,1747640730161,-420.0,0.00013698,2]
[361613038,1747640730186,-420.0,0.00013698,2]
[361613039,1747640730212,-600.46,0.00013698,2]
[361613040,1747640730236,-420.0,0.00013698,2]
[361613041,1747640730260,-420.0,0.00013698,2]
[361613042,1747640730285,-821.45,0.00013698,2]
[361613043,1747640730310,-420.0,0.00013698,2]
[361613044,1747640730334,-526.84,0.00013698,2]
[361613045,1747640730359,-1044.42,0.00013698,2]
[361613046,1747640730382,-420.0,0.00013698,2]
[361613047,1747640730406,-420.0,0.00013698,2]
[361613048,1747640730430,-420.0,0.00013698,2]
[361613049,1747640730458,-420.0,0.00013698,2]
[361613050,1747640730482,-400.0,0.00013698,2]
[361613051,1747640730505,-420.0,0.00013698,2]
[361613052,1747640730528,-420.0,0.00013698,2]
[361613053,1747640730551,-420.0,0.00013698,2]
[361613054,1747640730575,-2000.0,0.00013698,2]
[361613055,1747640730598,-420.0,0.00013698,2]
[361613056,1747640730621,-420.0,0.00013698,2]
[361613057,1747640730644,-467.84,0.00013698,2]
[361613058,1747640730667,-2159.86,0.00013698,2]
[361613059,1747640730689,-420.0,0.00013698,2]
[361613060,1747640730712,-420.0,0.00013698,2]
[361613061,1747640730734,-1720.69,0.00013698,2]
[361613062,1747640730757,-420.0,0.00013698,2]
[361613063,1747640730779,-420.0,0.00013698,2]
[361613064,1747640730803,-494.73,0.00013698,2]
[361613065,1747640730826,-420.0,0.00013698,2]
[361613066,1747640730850,-523.87,0.00013698,2]
[361613067,1747640730875,-420.0,0.00013698,2]
[361613068,1747640730898,-500.0,0.00013698,2]
[361613069,1747640730922,-531.19,0.00013698,2]
[361613070,1747640730945,-671.7,0.00013698,2]
[361613071,1747640730968,-400.0,0.00013698,2]
[361613072,1747640730994,-985.9,0.00013698,2]
[361613073,1747640731019,-420.0,0.00013698,2]
[361613074,1747640731048,-420.0,0.00013698,2]
[361613075,1747640731073,-400.57752208,0.00013698,2]
[361613076,1747640731097,-188.91490901,0.00013698,2]
[361613077,1747640731123,-400.0,0.00013698,2]
[361613078,1747640731146,-576.17,0.00013698,2]
[361613079,1747640731169,-400.0,0.00013698,2]
[361613080,1747640731193,-390.90981501,0.00013698,2]
[361613081,1747640731215,-155.38367855,0.00013698,2]
[361613082,1747640731240,-420.0,0.00013698,2]
[361613083,1747640731264,-403.80813653,0.00013698,2]
[361613084,1747640731289,-400.0,0.00013698,2]
[361613085,1747640731313,-420.0,0.00013698,2]
[361613086,1747640731336,-300.55071238,0.00013698,2]
[361613087,1747640731360,-420.0,0.00013698,2]
[361613088,1747640731384,-420.0,0.00013698,2]
[361613089,1747640731407,-401.03288202,0.00013698,2]
[361613090,1747640731432,-401.46719586,0.00013698,2]
[361613091,1747640731460,-500.0,0.00013698,2]
[361613092,1747640731483,-500.0,0.00013698,2]
[361613093,1747640731508,-500.0,0.00013698,2]
[361613094,1747640731533,-400.0,0.00013698,2]
[361613095,1747640731556,-500.0,0.00013698,2]
[361613096,1747640731580,-500.0,0.00013698,2]
[361613097,1747640731603,-402.25060091,0.00013698,2]
[361613098,1747640731627,-500.0,0.00013698,2]
[361613099,1747640731651,-420.0,0.00013698,2]
[361613100,1747640731675,-420.0,0.00013698,2]
[361613101,1747640731700,-420.0,0.00013698,2]
[361613102,1747640731724,-400.81043563,0.00013698,2]
[361613103,1747640731748,-611.75,0.00013698,2]
[361613104,1747640731771,-420.0,0.00013698,2]
[361613105,1747640731796,-420.0,0.00013698,2]
[361613106,1747640731820,-400.0,0.00013698,2]
[361613107,1747640731844,-420.0,0.00013698,2]
[361613108,1747640731867,-420.0,0.00013698,2]
[361613109,1747640731891,-420.0,0.00013698,2]
[361613110,1747640731915,-1135.5,0.00013698,2]
[361613111,1747640731938,-878.68,0.00013698,2]
[361613112,1747640731962,-420.0,0.00013698,2]
[361613113,1747640731987,-420.0,0.00013698,2]
[361613114,1747640732011,-2776.8,0.00013698,2]
[361613115,1747640732034,-403.83171747,0.00013698,2]
[361613116,1747640732059,-420.0,0.00013698,2]
[361613117,1747640732083,-1308.55,0.00013698,2]
[361613118,1747640732107,-420.0,0.00013698,2]
[361613119,1747640732129,-815.15,0.00013698,2]
[361613120,1747640732153,-420.0,0.00013698,2]
[361613121,1747640732177,-2011.91,0.00013698,2]
[361613122,1747640732203,-420.0,0.00013698,2]
[361613123,1747640732228,-406.61940126,0.00013698,2]
[361613124,1747640732250,-420.0,0.00013698,2]
[361613125,1747640732274,-420.0,0.00013698,2]
[361613126,1747640732298,-420.0,0.00013698,2]
[361613127,1747640732321,-420.0,0.00013698,2]
[361613128,1747640732346,-420.0,0.00013698,2]
[361613129,1747640732370,-400.0,0.00013698,2]
[361613130,1747640732394,-807.79,0.00013698,2]
[361613131,1747640732419,-4721.13,0.00013698,2]
[361613132,1747640732444,-286.10463187,0.00013698,2]
[361613133,1747640732471,-488.53,0.00013698,2]
[361613134,1747640732499,-715.73,0.00013698,2]
[361613135,1747640732523,-420.0,0.00013698,2]
[361613136,1747640732550,-420.0,0.00013698,2]
[361613137,1747640732574,-420.0,0.00013698,2]
[361613138,1747640732598,-380.0,0.00013698,2]
[361613139,1747640732624,-420.0,0.00013698,2]
[361613140,1747640732650,-420.0,0.00013698,2]
[361613141,1747640732675,-420.0,0.00013698,2]
[361613142,1747640732699,-420.0,0.00013698,2]
[361613143,1747640732724,-1000.0,0.00013698,2]
[361613144,1747640732748,-420.0,0.00013698,2]
[361613145,1747640732771,-662.88,0.00013698,2]
[361613146,1747640732802,-420.0,0.00013698,2]
[361613147,1747640732827,-420.0,0.00013698,2]
[361613148,1747640732853,-2170.67,0.00013698,2]
[361613149,1747640732879,-566.49,0.00013698,2]
[361613150,1747640733163,-420.0,0.00013698,2]
[361613151,1747640733194,-400.0,0.00013698,2]
[361613152,1747640733219,-740.01,0.00013698,2]
[361613153,1747640733244,-420.0,0.00013698,2]
[361613154,1747640733269,-420.0,0.00013698,2]
[361613155,1747640733295,-420.0,0.00013698,2]
[361613156,1747640733320,-380.0,0.00013698,2]
[361613157,1747640733345,-420.0,0.00013698,2]
[361613158,1747640733371,-679.9,0.00013698,2]
[361613159,1747640733396,-420.0,0.00013698,2]
[361613160,1747640733421,-420.0,0.00013698,2]
[361613161,1747640733450,-420.0,0.00013698,2]
[361613162,1747640733476,-1279.92,0.00013698,2]
[361613163,1747640733502,-420.0,0.00013698,2]
[361613164,1747640733529,-584.77,0.00013698,2]
[361613165,1747640733557,-384.65890343,0.00013698,2]
[361613166,1747640733582,-829.04,0.00013698,2]
[361613167,1747640733607,-734.29,0.00013698,2]
[361613168,1747640733634,-380.0,0.00013698,2]
[361613169,1747640733659,-447.94,0.00013698,2]
[361613170,1747640733684,-420.0,0.00013698,2]
[361613171,1747640733713,-380.0,0.00013698,2]
[361613172,1747640733739,-400.0,0.00013698,2]
[361613173,1747640733765,-2308.69,0.00013698,2]
[361613174,1747640733791,-847.41,0.00013698,2]
[361613175,1747640733815,-420.0,0.00013698,2]
[361613176,1747640733840,-420.0,0.00013698,2]
[361613177,1747640733865,-846.27,0.00013698,2]
[361613178,1747640733890,-420.0,0.00013698,2]
[361613179,1747640733914,-400.0,0.00013698,2]
[361613180,1747640733941,-676.61,0.00013698,2]
[361613181,1747640733967,-420.0,0.00013698,2]
[361613182,1747640733992,-769.04,0.00013698,2]
[361613183,1747640734017,-420.0,0.00013698,2]
[361613184,1747640734042,-420.0,0.00013698,2]
[361613185,1747640734068,-483.78755498,0.00013698,2]
[361613186,1747640734092,-224.84927339,0.00013698,2]
[361613187,1747640734117,-420.0,0.00013698,2]
[361613188,1747640734142,-568.88,0.00013698,2]
[361613189,1747640734167,-420.0,0.00013698,2]
[361613190,1747640734191,-1756.07,0.00013698,2]
[361613191,1747640734216,-420.0,0.00013698,2]
[361613192,1747640734240,-297.51937233,0.00013698,2]
[361613193,1747640734264,-194.85931678,0.00013698,2]
[361613194,1747640734289,-400.0,0.00013698,2]
[361613195,1747640734314,-433.21,0.00013698,2]
[361613196,1747640734339,-420.0,0.00013698,2]
[361613197,1747640734366,-1292.3,0.00013698,2]
[361613198,1747640734392,-2481.64,0.00013698,2]
[361613199,1747640734419,-400.0,0.00013698,2]
[361613200,1747640734448,-11470.47,0.00013698,2]
[361613201,1747640734474,-420.0,0.00013698,2]
[361613202,1747640734501,-473.88,0.00013698,2]
[361613203,1747640734526,-400.0,0.00013698,2]
[361613204,1747640734553,-420.0,0.00013698,2]
[361613205,1747640734578,-1312.84,0.00013698,2]
[361613206,1747640734604,-420.0,0.00013698,2]
[361613207,1747640734629,-400.52951919,0.00013698,2]
[361613208,1747640734655,-420.0,0.00013698,2]
[361613209,1747640734692,-514.22,0.00013698,2]
[361613210,1747640734719,-380.0,0.00013698,2]
[361613211,1747640734745,-11361.52,0.00013698,2]
[361613212,1747640734770,-420.0,0.00013698,2]
[361613213,1747640734796,-400.0,0.00013698,2]
[361613214,1747640734822,-3493.37,0.00013698,2]
[361613215,1747640734848,-420.0,0.00013698,2]
[361613216,1747640734874,-1984.25,0.00013698,2]
[361613217,1747640734899,-420.0,0.00013698,2]
[361613218,1747640734926,-661.12,0.00013698,2]
[361613219,1747640734951,-380.0,0.00013698,2]
[361613220,1747640734978,-420.0,0.00013698,2]
[361613221,1747640735002,-420.0,0.00013698,2]
[361613222,1747640735026,-441.80007282,0.00013698,2]
[361613223,1747640735052,-665.38,0.00013698,2]
[361613224,1747640735078,-631.51,0.00013698,2]
[361613225,1747640735103,-380.0,0.00013698,2]
[361613226,1747640735128,-1467.05,0.00013698,2]
[361613227,1747640735153,-711.36,0.00013698,2]
[361613228,1747640735183,-420.0,0.00013698,2]
[361613229,1747640735209,-300.49172854,0.00013698,2]
[361613230,1747640735234,-420.0,0.00013698,2]
[361613231,1747640735261,-652.55,0.00013698,2]
[361613232,1747640735288,-343.37,0.00013698,2]
[361613233,1747640735314,-677.34,0.00013698,2]
[361613234,1747640735340,-420.0,0.00013698,2]
[361613235,1747640735366,-420.0,0.00013698,2]
[361613236,1747640735393,-420.0,0.00013698,2]
[361613237,1747640735419,-420.0,0.00013698,2]
[361613238,1747640735445,-420.0,0.00013698,2]
[361613239,1747640735472,-7668.69,0.00013698,2]
[361613240,1747640735497,-710.49,0.00013698,2]
[361613241,1747640735525,-420.0,0.00013698,2]
[361613242,1747640735552,-1151.49,0.00013698,2]
[361613243,1747640735578,-403.04689367,0.00013698,2]
[361613244,1747640735605,-5183.91,0.00013698,2]
[361613245,1747640735633,-789.21,0.00013698,2]
[361613246,1747640735662,-420.0,0.00013698,2]
[361613247,1747640735688,-946.91,0.00013698,2]
[361613248,1747640735713,-721.2,0.00013698,2]
[361613249,1747640735739,-409.73887982,0.00013698,2]
[361613250,1747640735767,-400.49002544,0.00013698,2]
[361613251,1747640735796,-426.32,0.00013698,2]
[361613252,1747640735821,-548.51,0.00013698,2]
[361613253,1747640735845,-400.0,0.00013698,2]
[361613254,1747640735869,-420.0,0.00013698,2]
[361613255,1747640735894,-420.0,0.00013698,2]
[361613256,1747640735920,-200.0,0.00013698,2]
[361613257,1747640735945,-5050.0,0.00013698,2]
[361613258,1747640735970,-420.0,0.00013698,2]
[361613259,1747640735995,-401.1202433,0.00013698,2]
[361613260,1747640736020,-400.43272338,0.00013698,2]
[361613261,1747640736050,-420.0,0.00013698,2]
[361613262,1747640736075,-420.0,0.00013698,2]
[361613263,1747640736100,-420.0,0.00013698,2]
[361613264,1747640736126,-449.48,0.00013698,2]
[361613265,1747640736152,-436.89,0.00013698,2]
[361613266,1747640736180,-7981.42,0.00013698,2]
[361613267,1747640736209,-518.43,0.00013698,2]
[361613268,1747640736553,-400.0,0.00013698,2]
[361613269,1747640736579,-420.0,0.00013698,2]
[361613270,1747640736605,-420.0,0.00013698,2]
[361613271,1747640736631,-2293.57,0.00013698,2]
[361613272,1747640736656,-402.93115769,0.00013698,2]
[361613273,1747640736680,-400.0,0.00013698,2]
[361613274,1747640736709,-401.91926841,0.00013698,2]
[361613275,1747640736733,-1203.4,0.00013698,2]
[361613276,1747640736757,-500.0,0.00013698,2]
[361613277,1747640736783,-500.0,0.00013698,2]
[361613278,1747640736812,-465.76,0.00013698,2]
[361613279,1747640736836,-420.0,0.00013698,2]
[361613280,1747640736862,-650.42,0.00013698,2]
[361613281,1747640736886,-420.0,0.00013698,2]
[361613282,1747640736910,-400.0,0.00013698,2]
[361613283,1747640736935,-1380.85,0.00013698,2]
[361613284,1747640736959,-1028.64,0.00013698,2]
[361613285,1747640736984,-420.0,0.00013698,2]
[361613286,1747640737008,-558.79,0.00013698,2]
[361613287,1747640737034,-1219.28,0.00013698,2]
[361613288,1747640737062,-420.0,0.00013698,2]
[361613289,1747640737087,-465.7,0.00013698,2]
[361613290,1747640737113,-420.0,0.00013698,2]
[361613291,1747640737138,-420.0,0.00013698,2]
[361613292,1747640737162,-1487.34,0.00013698,2]
[361613293,1747640737188,-4069.79,0.00013698,2]
[361613294,1747640737215,-608.49,0.00013698,2]
[361613295,1747640737251,-400.0,0.00013698,2]
[361613296,1747640737280,-500.0,0.00013698,2]
[361613297,1747640737309,-500.0,0.00013698,2]
[361613298,1747640737335,-500.0,0.00013698,2]
[361613299,1747640737362,-500.0,0.00013698,2]
[361613300,1747640737388,-500.0,0.00013698,2]
[361613301,1747640737414,-5046.1,0.00013698,2]
[361613302,1747640737440,-500.0,0.00013698,2]
[361613303,1747640737469,-550.13,0.00013698,2]
[361613304,1747640737496,-500.0,0.00013698,2]
[361613305,1747640737526,-500.0,0.00013698,2]
[361613306,1747640737557,-500.0,0.00013698,2]
[361613307,1747640737583,-400.0,0.00013698,2]
[361613308,1747640737609,-8942.8,0.00013698,2]
[361613309,1747640737636,-1128.2,0.00013698,2]
[361613310,1747640737663,-420.0,0.00013698,2]
[361613311,1747640737689,-500.0,0.00013698,2]
[361613312,1747640737715,-500.0,0.00013698,2]
[361613313,1747640737742,-2195.69,0.00013698,2]
[361613314,1747640737770,-483.28,0.00013698,2]
[361613315,1747640737797,-541.87,0.00013698,2]
[361613316,1747640737823,-420.0,0.00013698,2]
[361613317,1747640737848,-420.0,0.00013698,2]
[361613318,1747640737874,-420.0,0.00013698,2]
[361613319,1747640737899,-637.11,0.00013698,2]
[361613320,1747640737924,-629.97,0.00013698,2]
[361613321,1747640737950,-201002.83,0.00013698,2]
[361613322,1747640737976,-784.91,0.00013698,2]
[361613323,1747640738001,-439.26,0.00013698,2]
[361613324,1747640738028,-329.59497798,0.00013698,2]
[361613325,1747640738059,-420.0,0.00013698,2]
[361613326,1747640738089,-557.67,0.00013698,2]
[361613327,1747640738117,-557.67,0.00013698,2]
[361613328,1747640738145,-557.67,0.00013698,2]
[361613329,1747640738174,-557.67,0.00013698,2]
[361613330,1747640738199,-490.47,0.00013698,2]
[361613331,1747640738224,-776.03,0.00013698,2]
[361613332,1747640738250,-420.0,0.00013698,2]
[361613333,1747640738275,-467.17,0.00013698,2]
[361613334,1747640738302,-420.0,0.00013698,2]
[361613335,1747640738326,-420.0,0.00013698,2]
[361613336,1747640738350,-516.41,0.00013698,2]